[Event "Titled Tuesday Blitz February 28 Late 2023"]
[White "De Souza, Cristiano Gomes"]
[Black "Rangel, Daniel"]
[WhiteFideId "2151758"]
[BlackFideId "2124475"]
[WhiteElo "2068"]
[BlackElo "2256"]
[Result "0-1"]
[Round "08"]
[TimeControl "180+2"]
[Date "2023.02.28"]
[WhiteClock "0:00:12"]
[BlackClock "0:00:23"]

1. d4 {[%clk 0:02:42]}  d5 {[%clk 0:02:54]} 2. c4 {[%clk 0:02:40]}  c6 {[%clk 0:02:53]} 3. Nf3 {[%clk 0:02:40]}  Nf6 {[%clk 0:02:52]} 4. Nc3 {[%clk 0:02:40]}  e6 {[%clk 0:02:45]} 5. Bg5 {[%clk 0:02:38]}  Nbd7 {[%clk 0:02:40]} 6. e3 {[%clk 0:02:37]}  h6 {[%clk 0:02:40]} 7. Bh4 {[%clk 0:02:36]}  g5 {[%clk 0:02:37]} 8. Bg3 {[%clk 0:02:35]}  Nh5 {[%clk 0:02:31]} 9. Rc1 {[%clk 0:02:33]}  Nxg3 {[%clk 0:02:28]} 10. hxg3 {[%clk 0:02:33]}  Bg7 {[%clk 0:02:27]} 11. Be2 {[%clk 0:02:31]}  a6 {[%clk 0:02:24]} 12. a3 {[%clk 0:02:31]}  b5 {[%clk 0:02:23]} 13. cxd5 {[%clk 0:02:28]}  cxd5 {[%clk 0:02:23]} 14. Nd2 {[%clk 0:02:27]}  Bb7 {[%clk 0:02:20]} 15. Nb3 {[%clk 0:02:26]}  O-O {[%clk 0:02:18]} 16. Na2 {[%clk 0:02:24]}  Qe7 {[%clk 0:02:14]} 17. Nc5 {[%clk 0:02:22]}  Nxc5 {[%clk 0:02:12]} 18. Rxc5 {[%clk 0:02:23]}  Rfc8 {[%clk 0:02:09]} 19. b4 {[%clk 0:02:21]}  Qd8 {[%clk 0:02:05]} 20. Qc2 {[%clk 0:02:19]}  Bf8 {[%clk 0:02:03]} 21. Rxc8 {[%clk 0:02:17]}  Rxc8 {[%clk 0:02:04]} 22. Qb2 {[%clk 0:02:17]}  Qc7 {[%clk 0:01:57]} 23. Kd2 {[%clk 0:02:15]}  Qb6 {[%clk 0:01:52]} 24. Rc1 {[%clk 0:02:13]}  Rxc1 {[%clk 0:01:51]} 25. Nxc1 {[%clk 0:02:12]}  a5 {[%clk 0:01:51]} 26. Nd3 {[%clk 0:02:09]}  axb4 {[%clk 0:01:51]} 27. axb4 {[%clk 0:02:08]}  Bg7 {[%clk 0:01:36]} 28. Nc5 {[%clk 0:02:06]}  Bc8 {[%clk 0:01:34]} 29. Qa3 {[%clk 0:02:04]}  Bb7 {[%clk 0:01:04]} 30. Qa5 {[%clk 0:01:56]}  Qxa5 {[%clk 0:01:03]} 31. bxa5 {[%clk 0:01:55]}  Bc6 {[%clk 0:01:04]} 32. Kc3 {[%clk 0:01:52]}  e5 {[%clk 0:00:57]} 33. Kb4 {[%clk 0:01:52]}  exd4 {[%clk 0:00:56]} 34. exd4 {[%clk 0:01:52]}  Bxd4 {[%clk 0:00:57]} 35. f3 {[%clk 0:01:49]}  Bf2 {[%clk 0:00:50]} 36. g4 {[%clk 0:01:48]}  Be1+ {[%clk 0:00:50]} 37. Kb3 {[%clk 0:01:43]}  Bxa5 {[%clk 0:00:49]} 38. Bd3 {[%clk 0:01:35]}  Kg7 {[%clk 0:00:43]} 39. Bf5 {[%clk 0:01:23]}  Kf6 {[%clk 0:00:28]} 40. Nd3 {[%clk 0:01:09]}  d4 {[%clk 0:00:23]} 41. Be4 {[%clk 0:01:03]}  Bd7 {[%clk 0:00:20]} 42. Nc5 {[%clk 0:01:00]}  Be6+ {[%clk 0:00:19]} 43. Nxe6 {[%clk 0:00:59]}  fxe6 {[%clk 0:00:19]} 44. Bd3 {[%clk 0:00:58]}  b4 {[%clk 0:00:17]} 45. Ka4 {[%clk 0:00:57]}  Bc7 {[%clk 0:00:14]} 46. Kxb4 {[%clk 0:00:57]}  Ke5 {[%clk 0:00:15]} 47. Kc4 {[%clk 0:00:56]}  Bb6 {[%clk 0:00:14]} 48. g3 {[%clk 0:00:52]}  Ba5 {[%clk 0:00:12]} 49. Be4 {[%clk 0:00:43]}  Be1 {[%clk 0:00:10]} 50. Kd3 {[%clk 0:00:43]}  Bxg3 {[%clk 0:00:09]} 51. Bg6 {[%clk 0:00:42]}  Bf2 {[%clk 0:00:10]} 52. Be4 {[%clk 0:00:38]}  Be3 {[%clk 0:00:10]} 53. Ba8 {[%clk 0:00:37]}  Kf4 {[%clk 0:00:11]} 54. Be4 {[%clk 0:00:35]}  e5 {[%clk 0:00:11]} 55. Bd5 {[%clk 0:00:34]}  Kg3 {[%clk 0:00:11]} 56. Be4 {[%clk 0:00:33]}  Bf4 {[%clk 0:00:11]} 57. Bd5 {[%clk 0:00:29]}  Kf2 {[%clk 0:00:11]} 58. Be4 {[%clk 0:00:29]}  Ke1 {[%clk 0:00:12]} 59. Bd5 {[%clk 0:00:29]}  Kd1 {[%clk 0:00:12]} 60. Be4 {[%clk 0:00:29]}  Kc1 {[%clk 0:00:12]} 61. Bd5 {[%clk 0:00:29]}  Kb2 {[%clk 0:00:13]} 62. Be4 {[%clk 0:00:29]}  Ka3 {[%clk 0:00:14]} 63. Bf5 {[%clk 0:00:28]}  Kb4 {[%clk 0:00:15]} 64. Be4 {[%clk 0:00:28]}  Kc5 {[%clk 0:00:16]} 65. Bf5 {[%clk 0:00:28]}  Kd6 {[%clk 0:00:17]} 66. Be4 {[%clk 0:00:29]}  Ke7 {[%clk 0:00:18]} 67. Bf5 {[%clk 0:00:28]}  Kf6 {[%clk 0:00:19]} 68. Be4 {[%clk 0:00:29]}  Kf7 {[%clk 0:00:17]} 69. Bf5 {[%clk 0:00:28]}  Ke7 {[%clk 0:00:18]} 70. Be4 {[%clk 0:00:28]}  Kf6 {[%clk 0:00:19]} 71. Bf5 {[%clk 0:00:28]}  h5 {[%clk 0:00:19]} 72. Be4 {[%clk 0:00:17]}  h4 {[%clk 0:00:18]} 73. Ke2 {[%clk 0:00:18]}  h3 {[%clk 0:00:17]} 74. Kf2 {[%clk 0:00:17]}  h2 {[%clk 0:00:18]} 75. Kg2 {[%clk 0:00:17]}  Ke7 {[%clk 0:00:19]} 76. Bd3 {[%clk 0:00:16]}  Kd6 {[%clk 0:00:20]} 77. Kh1 {[%clk 0:00:15]}  Kc5 {[%clk 0:00:21]} 78. Kg2 {[%clk 0:00:15]}  Kb4 {[%clk 0:00:21]} 79. Be4 {[%clk 0:00:14]}  Kc3 {[%clk 0:00:22]} 80. Kh1 {[%clk 0:00:13]}  d3 {[%clk 0:00:23]} 81. Bxd3 {[%clk 0:00:12]}  Kxd3 {[%clk 0:00:23]} 82. Kg2 {[%clk 0:00:12]}  Ke3 {[%clk 0:00:23]} 0-1


[Site "https://www.chess.com"]

[Event "Titled Tuesday Blitz February 28 Late 2023"]
[White "Wang, Alexander J"]
[Black "mohsengabr2002"]
[WhiteFideId "30955270"]
[WhiteElo "2230"]
[BlackElo "2321"]
[Result "0-1"]
[Round "08"]
[TimeControl "180+2"]
[Date "2023.02.28"]
[WhiteClock "0:00:19"]
[BlackClock "0:01:27"]

1. e4 {[%clk 0:03:00]}  f6 {[%clk 0:02:59]} 2. d4 {[%clk 0:03:00]}  g6 {[%clk 0:03:00]} 3. Nc3 {[%clk 0:02:59]}  e6 {[%clk 0:03:00]} 4. Nf3 {[%clk 0:02:56]}  Nh6 {[%clk 0:03:00]} 5. h3 {[%clk 0:02:53]}  Nf7 {[%clk 0:03:01]} 6. Be3 {[%clk 0:02:52]}  Bg7 {[%clk 0:03:02]} 7. Bc4 {[%clk 0:02:50]}  O-O {[%clk 0:03:02]} 8. h4 {[%clk 0:02:50]}  d6 {[%clk 0:03:01]} 9. Qd2 {[%clk 0:02:45]}  c6 {[%clk 0:03:01]} 10. a4 {[%clk 0:02:44]}  a5 {[%clk 0:03:00]} 11. Ne2 {[%clk 0:02:34]}  d5 {[%clk 0:02:59]} 12. exd5 {[%clk 0:02:33]}  cxd5 {[%clk 0:02:56]} 13. Bb5 {[%clk 0:02:26]}  Nc6 {[%clk 0:02:52]} 14. h5 {[%clk 0:02:24]}  g5 {[%clk 0:02:52]} 15. Ng3 {[%clk 0:02:17]}  h6 {[%clk 0:02:50]} 16. Ne2 {[%clk 0:02:14]}  Ne7 {[%clk 0:02:41]} 17. g4 {[%clk 0:02:08]}  f5 {[%clk 0:02:37]} 18. gxf5 {[%clk 0:02:05]}  exf5 {[%clk 0:02:36]} 19. Qd1 {[%clk 0:02:02]}  f4 {[%clk 0:02:35]} 20. Bd2 {[%clk 0:02:01]}  Bf5 {[%clk 0:02:33]} 21. Rg1 {[%clk 0:01:49]}  Nc6 {[%clk 0:02:18]} 22. c3 {[%clk 0:01:33]}  Re8 {[%clk 0:02:17]} 23. Qb3 {[%clk 0:01:27]}  Qe7 {[%clk 0:02:11]} 24. O-O-O {[%clk 0:01:22]}  Qe4 {[%clk 0:02:05]} 25. Be1 {[%clk 0:01:11]}  Qxf3 {[%clk 0:02:02]} 26. Rd2 {[%clk 0:00:40]}  Re7 {[%clk 0:01:41]} 27. Qd1 {[%clk 0:00:27]}  Rae8 {[%clk 0:01:39]} 28. b3 {[%clk 0:00:26]}  Nd6 {[%clk 0:01:35]} 29. Bxc6 {[%clk 0:00:22]}  bxc6 {[%clk 0:01:34]} 30. Kb2 {[%clk 0:00:20]}  Rxe2 {[%clk 0:01:33]} 31. Rxe2 {[%clk 0:00:20]}  Rxe2+ {[%clk 0:01:33]} 32. Ka3 {[%clk 0:00:20]}  Bf8 {[%clk 0:01:29]} 33. b4 {[%clk 0:00:18]}  Nc4+ {[%clk 0:01:28]} 34. Kb3 {[%clk 0:00:19]}  Rb2# {[%clk 0:01:27]} 0-1


[Site "https://www.chess.com"]

[Event "Titled Tuesday Blitz February 28 Late 2023"]
[White "Gamage, Wanshini Vidusama"]
[Black "Jenkins, Drake"]
[WhiteFideId "9953752"]
[BlackFideId "2022397"]
[WhiteElo "2201"]
[BlackElo "2298"]
[Result "0-1"]
[Round "08"]
[TimeControl "180+2"]
[Date "2023.02.28"]
[WhiteClock "0:00:16"]
[BlackClock "0:00:34"]

1. e4 {[%clk 0:03:00]}  c5 {[%clk 0:02:59]} 2. Nf3 {[%clk 0:03:01]}  g6 {[%clk 0:03:00]} 3. c3 {[%clk 0:02:57]}  d5 {[%clk 0:02:59]} 4. exd5 {[%clk 0:02:57]}  Qxd5 {[%clk 0:03:00]} 5. d4 {[%clk 0:02:57]}  Nf6 {[%clk 0:02:58]} 6. Na3 {[%clk 0:02:57]}  a6 {[%clk 0:02:55]} 7. Bc4 {[%clk 0:02:54]}  Qe4+ {[%clk 0:02:47]} 8. Be3 {[%clk 0:02:47]}  e6 {[%clk 0:02:38]} 9. dxc5 {[%clk 0:02:41]}  Bxc5 {[%clk 0:02:19]} 10. O-O {[%clk 0:02:13]}  Bxe3 {[%clk 0:02:18]} 11. fxe3 {[%clk 0:02:14]}  Qxe3+ {[%clk 0:02:15]} 12. Kh1 {[%clk 0:02:13]}  O-O {[%clk 0:02:07]} 13. Nc2 {[%clk 0:01:55]}  Qc5 {[%clk 0:02:06]} 14. Bb3 {[%clk 0:01:48]}  Nc6 {[%clk 0:01:51]} 15. Ncd4 {[%clk 0:01:47]}  Bd7 {[%clk 0:01:41]} 16. Qd2 {[%clk 0:01:40]}  Nxd4 {[%clk 0:01:20]} 17. cxd4 {[%clk 0:01:37]}  Qh5 {[%clk 0:01:16]} 18. Ne5 {[%clk 0:01:31]}  Ng4 {[%clk 0:01:08]} 19. Nf3 {[%clk 0:01:09]}  Bc6 {[%clk 0:01:04]} 20. h3 {[%clk 0:01:09]}  Nh6 {[%clk 0:00:59]} 21. Rae1 {[%clk 0:00:47]}  Rad8 {[%clk 0:00:57]} 22. Qf4 {[%clk 0:00:41]}  Nf5 {[%clk 0:00:44]} 23. Kg1 {[%clk 0:00:32]}  Bxf3 {[%clk 0:00:43]} 24. Rxf3 {[%clk 0:00:23]}  Nxd4 {[%clk 0:00:36]} 25. Rf2 {[%clk 0:00:16]}  Nxb3 {[%clk 0:00:34]} 0-1


[Site "https://www.chess.com"]

[Event "Titled Tuesday Blitz February 28 Late 2023"]
[White "olga-belka"]
[Black "Prieto Aranguren, Alain"]
[BlackFideId "2268906"]
[WhiteElo "2200"]
[BlackElo "2209"]
[Result "1-0"]
[Round "08"]
[TimeControl "180+2"]
[Date "2023.02.28"]
[WhiteClock "0:00:25"]
[BlackClock "0:00:02"]

1. e4 {[%clk 0:02:59]}  c6 {[%clk 0:02:57]} 2. d4 {[%clk 0:02:58]}  d5 {[%clk 0:02:53]} 3. exd5 {[%clk 0:02:58]}  cxd5 {[%clk 0:02:52]} 4. Bd3 {[%clk 0:02:57]}  Nc6 {[%clk 0:02:51]} 5. c3 {[%clk 0:02:57]}  Qc7 {[%clk 0:02:51]} 6. h3 {[%clk 0:02:56]}  g6 {[%clk 0:02:50]} 7. Nf3 {[%clk 0:02:55]}  Bf5 {[%clk 0:02:50]} 8. Be2 {[%clk 0:02:54]}  Nf6 {[%clk 0:02:48]} 9. O-O {[%clk 0:02:55]}  Bg7 {[%clk 0:02:48]} 10. Be3 {[%clk 0:02:54]}  O-O {[%clk 0:02:48]} 11. Nbd2 {[%clk 0:02:54]}  Rac8 {[%clk 0:02:47]} 12. Re1 {[%clk 0:02:54]}  Ne4 {[%clk 0:02:46]} 13. Nxe4 {[%clk 0:02:46]}  dxe4 {[%clk 0:02:44]} 14. Nd2 {[%clk 0:02:45]}  e5 {[%clk 0:02:44]} 15. d5 {[%clk 0:02:39]}  Ne7 {[%clk 0:02:41]} 16. c4 {[%clk 0:02:38]}  Rfd8 {[%clk 0:02:35]} 17. g4 {[%clk 0:02:35]}  Bd7 {[%clk 0:02:30]} 18. Nxe4 {[%clk 0:02:33]}  f5 {[%clk 0:02:29]} 19. d6 {[%clk 0:02:26]}  Qc6 {[%clk 0:02:21]} 20. dxe7 {[%clk 0:02:25]}  Re8 {[%clk 0:02:20]} 21. Nd6 {[%clk 0:02:22]}  f4 {[%clk 0:02:17]} 22. Bxa7 {[%clk 0:02:14]}  e4 {[%clk 0:02:08]} 23. Nxc8 {[%clk 0:02:10]}  f3 {[%clk 0:02:01]} 24. Bf1 {[%clk 0:02:05]}  Qxc8 {[%clk 0:01:59]} 25. Rxe4 {[%clk 0:02:01]}  Bc6 {[%clk 0:01:52]} 26. Re1 {[%clk 0:01:55]}  h5 {[%clk 0:01:48]} 27. gxh5 {[%clk 0:01:41]}  Qf5 {[%clk 0:01:45]} 28. Qd6 {[%clk 0:01:35]}  Qg5+ {[%clk 0:01:29]} 29. Qg3 {[%clk 0:01:32]}  Qxh5 {[%clk 0:01:29]} 30. Qg4 {[%clk 0:01:22]}  Qa5 {[%clk 0:01:17]} 31. Bd4 {[%clk 0:01:15]}  Bxd4 {[%clk 0:01:09]} 32. Qxd4 {[%clk 0:01:14]}  Kh7 {[%clk 0:01:03]} 33. Rad1 {[%clk 0:01:05]}  b6 {[%clk 0:00:33]} 34. Re5 {[%clk 0:00:59]}  Qb4 {[%clk 0:00:19]} 35. Qh4+ {[%clk 0:00:55]}  Kg7 {[%clk 0:00:19]} 36. Rd8 {[%clk 0:00:51]}  Qxb2 {[%clk 0:00:11]} 37. Rxe8 {[%clk 0:00:43]}  Bxe8 {[%clk 0:00:11]} 38. Re4 {[%clk 0:00:39]}  Qxa2 {[%clk 0:00:06]} 39. Qf4 {[%clk 0:00:36]}  Bf7 {[%clk 0:00:03]} 40. e8=Q {[%clk 0:00:33]}  Bxe8 {[%clk 0:00:03]} 41. Rxe8 {[%clk 0:00:33]}  Qa3 {[%clk 0:00:03]} 42. Qe5+ {[%clk 0:00:25]}  Kh6 {[%clk 0:00:02]} 43. Rh8# {[%clk 0:00:25]} 1-0


[Site "https://www.chess.com"]

[Event "Titled Tuesday Blitz February 28 Late 2023"]
[White "Comas Fabrego, Lluis"]
[Black "Lalanne, Pablo"]
[WhiteFideId "2200325"]
[BlackFideId "112151"]
[WhiteElo "2523"]
[BlackElo "2120"]
[Result "1-0"]
[Round "08"]
[TimeControl "180+2"]
[Date "2023.02.28"]
[WhiteClock "0:00:06"]
[BlackClock "0:00:01"]

1. Nf3 {[%clk 0:03:00]}  c5 {[%clk 0:02:59]} 2. c4 {[%clk 0:03:00]}  Nf6 {[%clk 0:02:58]} 3. Nc3 {[%clk 0:02:59]}  e6 {[%clk 0:02:58]} 4. d4 {[%clk 0:02:58]}  d5 {[%clk 0:02:55]} 5. cxd5 {[%clk 0:02:57]}  Nxd5 {[%clk 0:02:56]} 6. e4 {[%clk 0:02:56]}  Nxc3 {[%clk 0:02:56]} 7. bxc3 {[%clk 0:02:57]}  cxd4 {[%clk 0:02:56]} 8. cxd4 {[%clk 0:02:57]}  Bb4+ {[%clk 0:02:57]} 9. Bd2 {[%clk 0:02:57]}  Bxd2+ {[%clk 0:02:57]} 10. Qxd2 {[%clk 0:02:58]}  O-O {[%clk 0:02:58]} 11. Bc4 {[%clk 0:02:47]}  Nd7 {[%clk 0:02:53]} 12. O-O {[%clk 0:02:42]}  b6 {[%clk 0:02:52]} 13. Rad1 {[%clk 0:02:36]}  Bb7 {[%clk 0:02:52]} 14. a4 {[%clk 0:02:26]}  Bxe4 {[%clk 0:02:42]} 15. Ng5 {[%clk 0:02:25]}  Bb7 {[%clk 0:02:19]} 16. d5 {[%clk 0:02:22]}  Ne5 {[%clk 0:02:11]} 17. Bb3 {[%clk 0:01:57]}  Bxd5 {[%clk 0:02:08]} 18. Qf4 {[%clk 0:01:52]}  Ng6 {[%clk 0:02:01]} 19. Qg3 {[%clk 0:01:41]}  h6 {[%clk 0:01:52]} 20. Ne4 {[%clk 0:01:28]}  Bxe4 {[%clk 0:01:14]} 21. Rxd8 {[%clk 0:01:27]}  Raxd8 {[%clk 0:01:15]} 22. Qc7 {[%clk 0:01:13]}  Bd5 {[%clk 0:00:56]} 23. Bxd5 {[%clk 0:01:09]}  Rxd5 {[%clk 0:00:55]} 24. Qxa7 {[%clk 0:01:09]}  b5 {[%clk 0:00:47]} 25. a5 {[%clk 0:01:00]}  Rfd8 {[%clk 0:00:44]} 26. g3 {[%clk 0:00:59]}  Ne5 {[%clk 0:00:43]} 27. Rc1 {[%clk 0:00:53]}  Nc4 {[%clk 0:00:39]} 28. a6 {[%clk 0:00:44]}  R5d7 {[%clk 0:00:35]} 29. Qc5 {[%clk 0:00:38]}  Nd6 {[%clk 0:00:24]} 30. Rd1 {[%clk 0:00:26]}  Kh7 {[%clk 0:00:18]} 31. a7 {[%clk 0:00:23]}  g6 {[%clk 0:00:12]} 32. Rxd6 {[%clk 0:00:17]}  Rxd6 {[%clk 0:00:12]} 33. Qxd6 {[%clk 0:00:16]}  Rxd6 {[%clk 0:00:12]} 34. a8=Q {[%clk 0:00:17]}  Rd5 {[%clk 0:00:12]} 35. Qb7 {[%clk 0:00:16]}  Kg7 {[%clk 0:00:12]} 36. f4 {[%clk 0:00:16]}  h5 {[%clk 0:00:12]} 37. Kg2 {[%clk 0:00:16]}  Rf5 {[%clk 0:00:10]} 38. Kf3 {[%clk 0:00:15]}  Rd5 {[%clk 0:00:09]} 39. Ke4 {[%clk 0:00:15]}  Rf5 {[%clk 0:00:08]} 40. h3 {[%clk 0:00:15]}  Rd5 {[%clk 0:00:08]} 41. Qb6 {[%clk 0:00:15]}  Rf5 {[%clk 0:00:07]} 42. g4 {[%clk 0:00:15]}  hxg4 {[%clk 0:00:07]} 43. hxg4 {[%clk 0:00:15]}  Rd5 {[%clk 0:00:07]} 44. Qc7 {[%clk 0:00:10]}  b4 {[%clk 0:00:02]} 45. Qb6 {[%clk 0:00:07]}  g5 {[%clk 0:00:01]} 46. fxg5 {[%clk 0:00:06]}  Rxg5 {[%clk 0:00:01]} 47. Kf4 {[%clk 0:00:06]} 1-0


[Site "https://www.chess.com"]

[Event "Titled Tuesday Blitz February 28 Late 2023"]
[White "Escalante Ramirez, Rafael"]
[Black "Marcolino, Daniel Mattos"]
[WhiteFideId "3900177"]
[BlackFideId "2106841"]
[WhiteElo "2276"]
[BlackElo "2120"]
[Result "1-0"]
[Round "08"]
[TimeControl "180+2"]
[Date "2023.02.28"]
[WhiteClock "0:00:11"]
[BlackClock "0:00:12"]

1. Nf3 {[%clk 0:03:00]}  Nf6 {[%clk 0:02:58]} 2. d4 {[%clk 0:03:00]}  d5 {[%clk 0:02:56]} 3. c4 {[%clk 0:03:00]}  e6 {[%clk 0:02:56]} 4. Nc3 {[%clk 0:03:00]}  a6 {[%clk 0:02:56]} 5. cxd5 {[%clk 0:03:00]}  exd5 {[%clk 0:02:56]} 6. Bg5 {[%clk 0:03:00]}  c6 {[%clk 0:02:51]} 7. e3 {[%clk 0:03:00]}  Be6 {[%clk 0:02:45]} 8. Bd3 {[%clk 0:02:59]}  Bd6 {[%clk 0:02:45]} 9. Qc2 {[%clk 0:02:53]}  Nbd7 {[%clk 0:02:43]} 10. O-O {[%clk 0:02:50]}  Qc7 {[%clk 0:02:38]} 11. Bh4 {[%clk 0:02:34]}  O-O {[%clk 0:02:33]} 12. Rae1 {[%clk 0:02:25]}  Rfe8 {[%clk 0:02:16]} 13. Bg3 {[%clk 0:02:18]}  Bg4 {[%clk 0:02:10]} 14. Bxd6 {[%clk 0:02:03]}  Qxd6 {[%clk 0:02:11]} 15. Nd2 {[%clk 0:02:03]}  Bh5 {[%clk 0:02:10]} 16. f4 {[%clk 0:01:49]}  Ng4 {[%clk 0:01:49]} 17. Nd1 {[%clk 0:01:31]}  Bg6 {[%clk 0:01:26]} 18. h3 {[%clk 0:01:11]}  Bxd3 {[%clk 0:01:01]} 19. Qxd3 {[%clk 0:01:12]}  Ngf6 {[%clk 0:01:02]} 20. Nf2 {[%clk 0:01:03]}  c5 {[%clk 0:01:02]} 21. Nf3 {[%clk 0:00:57]}  c4 {[%clk 0:01:00]} 22. Qc2 {[%clk 0:00:51]}  b5 {[%clk 0:01:00]} 23. a3 {[%clk 0:00:50]}  a5 {[%clk 0:00:56]} 24. Ne5 {[%clk 0:00:49]}  b4 {[%clk 0:00:49]} 25. axb4 {[%clk 0:00:48]}  axb4 {[%clk 0:00:50]} 26. Ra1 {[%clk 0:00:39]}  Qb6 {[%clk 0:00:16]} 27. Kh1 {[%clk 0:00:31]}  Qb7 {[%clk 0:00:15]} 28. Qf5 {[%clk 0:00:28]}  Rxa1 {[%clk 0:00:14]} 29. Rxa1 {[%clk 0:00:27]}  Nxe5 {[%clk 0:00:14]} 30. fxe5 {[%clk 0:00:26]}  Ne4 {[%clk 0:00:14]} 31. Nxe4 {[%clk 0:00:25]}  dxe4 {[%clk 0:00:15]} 32. Qf2 {[%clk 0:00:13]}  c3 {[%clk 0:00:15]} 33. bxc3 {[%clk 0:00:13]}  bxc3 {[%clk 0:00:16]} 34. Qc2 {[%clk 0:00:13]}  Qb2 {[%clk 0:00:14]} 35. Rc1 {[%clk 0:00:13]}  Rc8 {[%clk 0:00:12]} 36. Qxb2 {[%clk 0:00:11]} 1-0


[Site "https://www.chess.com"]

[Event "Titled Tuesday Blitz February 28 Late 2023"]
[White "Sanchez, Robert"]
[Black "Bongo Akanga Ndjila, Barthelemy"]
[WhiteFideId "2034360"]
[BlackFideId "10609431"]
[WhiteElo "2411"]
[BlackElo "1768"]
[Result "0-1"]
[Round "08"]
[TimeControl "180+2"]
[Date "2023.02.28"]
[WhiteClock "0:00:52"]
[BlackClock "0:01:22"]

1. e4 {[%clk 0:03:00]}  e6 {[%clk 0:02:58]} 2. d4 {[%clk 0:03:00]}  d5 {[%clk 0:02:57]} 3. Nc3 {[%clk 0:03:00]}  Nf6 {[%clk 0:02:57]} 4. Bg5 {[%clk 0:03:00]}  Be7 {[%clk 0:02:57]} 5. e5 {[%clk 0:03:00]}  Nfd7 {[%clk 0:02:56]} 6. h4 {[%clk 0:03:00]}  Bxg5 {[%clk 0:02:56]} 7. hxg5 {[%clk 0:03:00]}  Qxg5 {[%clk 0:02:57]} 8. Nf3 {[%clk 0:03:01]}  Qe7 {[%clk 0:02:56]} 9. Bd3 {[%clk 0:02:57]}  a6 {[%clk 0:02:52]} 10. Ne2 {[%clk 0:02:54]}  g6 {[%clk 0:02:47]} 11. Qd2 {[%clk 0:02:53]}  c5 {[%clk 0:02:46]} 12. c3 {[%clk 0:02:53]}  Nc6 {[%clk 0:02:46]} 13. O-O-O {[%clk 0:02:51]}  b5 {[%clk 0:02:41]} 14. Kb1 {[%clk 0:02:49]}  Bb7 {[%clk 0:02:41]} 15. Ng5 {[%clk 0:02:46]}  h5 {[%clk 0:02:38]} 16. g4 {[%clk 0:02:46]}  O-O-O {[%clk 0:02:35]} 17. f4 {[%clk 0:02:42]}  hxg4 {[%clk 0:02:34]} 18. Rhg1 {[%clk 0:02:42]}  cxd4 {[%clk 0:02:30]} 19. Nxd4 {[%clk 0:02:39]}  Nxd4 {[%clk 0:02:30]} 20. cxd4 {[%clk 0:02:39]}  Kb8 {[%clk 0:02:29]} 21. Rxg4 {[%clk 0:02:39]}  Nb6 {[%clk 0:02:26]} 22. Rgg1 {[%clk 0:02:34]}  Nc4 {[%clk 0:02:26]} 23. Qe1 {[%clk 0:02:26]}  Rh2 {[%clk 0:02:23]} 24. Bxc4 {[%clk 0:02:20]}  dxc4 {[%clk 0:02:21]} 25. Qa5 {[%clk 0:02:09]}  f6 {[%clk 0:02:09]} 26. Nf7 {[%clk 0:02:04]}  Be4+ {[%clk 0:01:59]} 27. Ka1 {[%clk 0:02:04]}  Rd7 {[%clk 0:01:47]} 28. Nd6 {[%clk 0:02:00]}  Bb7 {[%clk 0:01:45]} 29. Rxg6 {[%clk 0:01:55]}  fxe5 {[%clk 0:01:44]} 30. fxe5 {[%clk 0:01:48]}  Qh4 {[%clk 0:01:40]} 31. Qb6 {[%clk 0:01:38]}  Qh8 {[%clk 0:01:39]} 32. a3 {[%clk 0:01:26]}  Rh1 {[%clk 0:01:39]} 33. Rxh1 {[%clk 0:01:22]}  Qxh1+ {[%clk 0:01:39]} 34. Ka2 {[%clk 0:01:23]}  Qh8 {[%clk 0:01:33]} 35. Rxe6 {[%clk 0:01:21]}  c3 {[%clk 0:01:33]} 36. bxc3 {[%clk 0:01:07]}  Qg8 {[%clk 0:01:32]} 37. Nxb7 {[%clk 0:01:06]}  Rxb7 {[%clk 0:01:28]} 38. Qd6+ {[%clk 0:01:06]}  Kc8 {[%clk 0:01:22]} 39. Qd5 {[%clk 0:00:52]} 0-1


[Site "https://www.chess.com"]

[Event "Titled Tuesday Blitz February 28 Late 2023"]
[White "Lopez Perdomo, Juan David"]
[Black "Skaric, Djuro"]
[WhiteFideId "4405137"]
[BlackFideId "934569"]
[WhiteElo "1965"]
[BlackElo "2282"]
[Result "1-0"]
[Round "08"]
[TimeControl "180+2"]
[Date "2023.02.28"]
[WhiteClock "0:00:51"]
[BlackClock "0:00:49"]

1. e4 {[%clk 0:03:00]}  d6 {[%clk 0:02:59]} 2. d4 {[%clk 0:03:01]}  g6 {[%clk 0:02:59]} 3. f3 {[%clk 0:03:02]}  Bg7 {[%clk 0:03:00]} 4. c3 {[%clk 0:03:03]}  Nf6 {[%clk 0:03:00]} 5. Be3 {[%clk 0:03:04]}  Nc6 {[%clk 0:03:00]} 6. Bd3 {[%clk 0:03:04]}  O-O {[%clk 0:02:58]} 7. Ne2 {[%clk 0:03:04]}  e5 {[%clk 0:02:59]} 8. O-O {[%clk 0:03:05]}  Nh5 {[%clk 0:02:58]} 9. g4 {[%clk 0:03:02]}  Nf6 {[%clk 0:02:56]} 10. Ng3 {[%clk 0:03:03]}  Nd7 {[%clk 0:02:55]} 11. f4 {[%clk 0:02:58]}  exd4 {[%clk 0:02:54]} 12. Bf2 {[%clk 0:02:49]}  Nb6 {[%clk 0:02:52]} 13. f5 {[%clk 0:02:24]}  dxc3 {[%clk 0:02:45]} 14. Nxc3 {[%clk 0:02:23]}  Ne5 {[%clk 0:02:46]} 15. Qd2 {[%clk 0:02:09]}  Qh4 {[%clk 0:02:42]} 16. Be2 {[%clk 0:02:04]}  Nxg4 {[%clk 0:02:30]} 17. Bxg4 {[%clk 0:02:04]}  Qxg4 {[%clk 0:02:30]} 18. Bxb6 {[%clk 0:02:03]}  axb6 {[%clk 0:02:26]} 19. f6 {[%clk 0:02:00]}  Bh8 {[%clk 0:02:21]} 20. Rf4 {[%clk 0:01:57]}  Qd7 {[%clk 0:02:11]} 21. Nd5 {[%clk 0:01:57]}  Re8 {[%clk 0:02:11]} 22. Nf5 {[%clk 0:01:54]}  Kf8 {[%clk 0:02:02]} 23. Rh4 {[%clk 0:01:48]}  Rxe4 {[%clk 0:00:56]} 24. Qh6+ {[%clk 0:01:34]}  Ke8 {[%clk 0:00:54]} 25. Rxe4+ {[%clk 0:01:35]}  Qe6 {[%clk 0:00:54]} 26. Nxc7+ {[%clk 0:01:27]}  Kd7 {[%clk 0:00:52]} 27. Nxe6 {[%clk 0:01:18]}  fxe6 {[%clk 0:00:52]} 28. Qxh7+ {[%clk 0:01:11]}  Kc6 {[%clk 0:00:50]} 29. Rc1+ {[%clk 0:00:56]}  Kb5 {[%clk 0:00:49]} 30. Nxd6+ {[%clk 0:00:52]}  Ka6 {[%clk 0:00:49]} 31. Ra4# {[%clk 0:00:51]} 1-0


[Site "https://www.chess.com"]